fUSD/lending_fUSD_20250720
["ID","MTS","AMOUNT","RATE_DAILY","PERIOD"]
[373508840,1753025454050,-3812.0,0.00019178,2]
[373508842,1753025454059,-891.1,0.00019178,2]
[373508844,1753025454068,-480.0,0.00019178,2]
[373508846,1753025454079,-668.66,0.00019178,2]
[373508848,1753025454089,-462.75665307,0.00019178,2]
[373508850,1753025454098,-1213.78,0.00019178,2]
[373508852,1753025454108,-480.0,0.00019178,2]
[373508854,1753025454117,-480.0,0.00019178,2]
[373508855,1753025454127,-480.0,0.00019178,2]
[373508857,1753025454136,-480.0,0.00019178,2]
[373508859,1753025454145,-480.0,0.00019178,2]
[373508861,1753025454154,-480.0,0.00019178,2]
[373508863,1753025454164,-480.0,0.00019178,2]
[373508865,1753025454173,-480.0,0.00019178,2]
[373508867,1753025454183,-163.070343,0.00019178,2]
[373508869,1753025454193,-164.176989,0.00019178,2]
[373508871,1753025454203,-659.91,0.00019178,2]
[373508873,1753025454212,-480.0,0.00019178,2]
[373508875,1753025454222,-228.20175447,0.00019178,2]
[373508877,1753025454232,-480.0,0.00019178,2]
[373508879,1753025454241,-480.0,0.00019178,2]
[373508881,1753025454250,-2166.1,0.00019178,2]
[373508883,1753025454259,-480.0,0.00019178,2]
[373508885,1753025454269,-480.0,0.00019178,2]
[373508887,1753025454278,-480.0,0.00019178,2]
[373508889,1753025454287,-480.0,0.00019178,2]
[373508891,1753025454296,-480.0,0.00019178,2]
[373508893,1753025454305,-480.0,0.00019178,2]
[373508895,1753025454314,-480.0,0.00019178,2]
[373508896,1753025454324,-480.0,0.00019178,2]
[373508898,1753025454332,-486.16972026,0.00019178,2]
[373508900,1753025454342,-480.0,0.00019178,2]
[373508902,1753025454351,-480.0,0.00019178,2]
[373508904,1753025454360,-480.0,0.00019178,2]
[373508906,1753025454370,-480.0,0.00019178,2]
[373508908,1753025454379,-500.0,0.00019178,2]
[373508910,1753025454388,-500.0,0.00019178,2]
[373508912,1753025454397,-480.0,0.00019178,2]
[373508914,1753025454407,-1407.94,0.00019178,2]
[373508916,1753025454416,-483.47190742,0.00019178,2]
[373508918,1753025454426,-480.0,0.00019178,2]
[373508920,1753025454436,-480.0,0.00019178,2]
[373508922,1753025454445,-12751.63,0.00019178,2]
[373508924,1753025454455,-420.0,0.00019178,2]
[373508926,1753025454464,-1036.55,0.00019178,2]
[373508928,1753025454473,-500.0,0.00019178,2]
[373508930,1753025454482,-483.42648644,0.00019178,2]
[373508932,1753025454491,-480.0,0.00019178,2]
[373508934,1753025454500,-480.0,0.00019178,2]
[373508936,1753025454510,-480.0,0.00019178,2]
[373508938,1753025454519,-1816.84,0.00019178,2]
[373508940,1753025454528,-480.0,0.00019178,2]
[373508942,1753025454537,-486.15551337,0.00019178,2]
[373508944,1753025454547,-480.0,0.00019178,2]
[373508946,1753025454556,-1718.65,0.00019178,2]
[373508948,1753025454566,-480.0,0.00019178,2]
[373508950,1753025454575,-480.0,0.00019178,2]
[373508952,1753025454584,-462.98678407,0.00019178,2]
[373508954,1753025454593,-622.53,0.00019178,2]
[373508956,1753025454602,-480.0,0.00019178,2]
[373508958,1753025454612,-601.84,0.00019178,2]
[373508960,1753025454620,-612.1,0.00019178,2]
[373508962,1753025454629,-460.0,0.00019178,2]
[373508964,1753025454639,-480.0,0.00019178,2]
[373508966,1753025454648,-460.0,0.00019178,2]
[373508968,1753025454657,-480.0,0.00019178,2]
[373508970,1753025454666,-480.0,0.00019178,2]
[373508971,1753025454676,-480.0,0.00019178,2]
[373508973,1753025454686,-480.0,0.00019178,2]
[373508975,1753025454695,-480.0,0.00019178,2]
[373508977,1753025454705,-4157.51,0.00019178,2]
[373508979,1753025454715,-460.0,0.00019178,2]
[373508981,1753025454724,-480.0,0.00019178,2]
[373508983,1753025454734,-1009.05,0.00019178,2]
[373508985,1753025454744,-480.0,0.00019178,2]
[373508987,1753025454753,-480.0,0.00019178,2]
[373508989,1753025454762,-480.0,0.00019178,2]
[373508991,1753025454771,-480.0,0.00019178,2]
[373508993,1753025454781,-463.67228027,0.00019178,2]
[373508995,1753025454790,-480.0,0.00019178,2]
[373508997,1753025454800,-2040.95,0.00019178,2]
[373508999,1753025454809,-480.0,0.00019178,2]
[373509001,1753025454819,-480.0,0.00019178,2]
[373509003,1753025454828,-480.0,0.00019178,2]
[373509005,1753025454838,-480.0,0.00019178,2]
[373509007,1753025454848,-480.0,0.00019178,2]
[373509009,1753025454858,-480.0,0.00019178,2]
[373509011,1753025454867,-461.26040417,0.00019178,2]
[373509013,1753025454877,-480.0,0.00019178,2]
[373509014,1753025454887,-978.69,0.00019178,2]
[373509015,1753025454897,-480.0,0.00019178,2]
[373509016,1753025454907,-461.72618164,0.00019178,2]
[373509017,1753025454917,-2156.28,0.00019178,2]
[373509018,1753025454926,-480.0,0.00019178,2]
[373509019,1753025454936,-2306.5,0.00019178,2]
[373509020,1753025454946,-480.0,0.00019178,2]
[373509021,1753025454955,-521.88,0.00019178,2]
[373509022,1753025454965,-822.69,0.00019178,2]
[373509025,1753025455089,-460.50138065,0.00019178,2]
[373509026,1753025455100,-629.43,0.00019178,2]
[373509027,1753025455110,-273.76521797,0.00019178,2]
[373509029,1753025455119,-462.45658088,0.00019178,2]
[373509031,1753025455130,-480.0,0.00019178,2]
[373509033,1753025455139,-2120.02,0.00019178,2]
[373509035,1753025455157,-1125.49,0.00019178,2]
[373509037,1753025455167,-480.0,0.00019178,2]
[373509039,1753025455177,-2079.01,0.00019178,2]
[373509041,1753025455197,-480.0,0.00019178,2]
[373509043,1753025455206,-460.35056793,0.00019178,2]
[373509045,1753025455216,-612.7119882,0.00019178,2]
[373509047,1753025455226,-480.0,0.00019178,2]
[373509049,1753025455235,-1434.63,0.00019178,2]
[373509051,1753025455245,-480.0,0.00019178,2]
[373509053,1753025455254,-480.0,0.00019178,2]
[373509054,1753025455263,-495.50409512,0.00019178,2]
[373509055,1753025455273,-460.0,0.00019178,2]
[373509056,1753025455282,-3022.25,0.00019178,2]
[373509057,1753025455291,-460.96406724,0.00019178,2]
[373509058,1753025455300,-761.77,0.00019178,2]
[373509060,1753025455310,-480.0,0.00019178,2]
[373509061,1753025455319,-2163.94,0.00019178,2]
[373509062,1753025455329,-480.0,0.00019178,2]
[373509063,1753025455338,-1369.49,0.00019178,2]
[373509064,1753025455347,-1361.05,0.00019178,2]
[373509065,1753025455356,-480.0,0.00019178,2]
[373509066,1753025455366,-481.63814747,0.00019178,2]
[373509067,1753025455375,-481.11357833,0.00019178,2]
[373509068,1753025455384,-480.0,0.00019178,2]
[373509069,1753025455393,-480.0,0.00019178,2]
[373509070,1753025455403,-480.0,0.00019178,2]
[373509071,1753025455412,-480.0,0.00019178,2]
[373509072,1753025455421,-620.36843833,0.00019178,2]
[373509073,1753025455431,-1646.17,0.00019178,2]
[373509074,1753025455440,-845.79,0.00019178,2]
[373509075,1753025455449,-480.0,0.00019178,2]
[373509076,1753025455458,-464.40648839,0.00019178,2]
[373509077,1753025455468,-480.0,0.00019178,2]
[373509078,1753025455477,-1443.7,0.00019178,2]
[373509079,1753025455487,-480.0,0.00019178,2]
[373509080,1753025455496,-7148.75,0.00019178,2]
[373509081,1753025455506,-480.0,0.00019178,2]
[373509082,1753025455516,-1140.96,0.00019178,2]
[373509083,1753025455525,-480.0,0.00019178,2]
[373509084,1753025455534,-451.619249,0.00019178,2]
[373509085,1753025455544,-480.0,0.00019178,2]
[373509086,1753025455553,-480.0,0.00019178,2]
[373509087,1753025455562,-480.0,0.00019178,2]
[373509088,1753025455572,-480.0,0.00019178,2]
[373509089,1753025455581,-966.33,0.00019178,2]
[373509090,1753025455591,-1621.22,0.00019178,2]
[373509091,1753025455600,-480.0,0.00019178,2]
[373509092,1753025455610,-2414.0,0.00019178,2]
[373509093,1753025455619,-480.0,0.00019178,2]
[373509094,1753025455628,-1598.13,0.00019178,2]
[373509095,1753025455637,-480.0,0.00019178,2]
[373509096,1753025455647,-480.0,0.00019178,2]
[373509097,1753025455656,-4041.8,0.00019178,2]
[373509098,1753025455665,-166.23255424,0.00019178,2]
[373509099,1753025455675,-480.0,0.00019178,2]
[373509100,1753025455685,-480.0,0.00019178,2]
[373509101,1753025455694,-480.0,0.00019178,2]
[373509102,1753025455703,-480.0,0.00019178,2]
[373509103,1753025455713,-500.0,0.00019178,2]
[373509104,1753025455722,-500.0,0.00019178,2]
[373509105,1753025455731,-500.0,0.00019178,2]
[373509106,1753025455741,-480.0,0.00019178,2]
[373509107,1753025455750,-214.79028271,0.00019178,2]
[373509108,1753025455760,-2063.6,0.00019178,2]
[373509109,1753025455769,-480.0,0.00019178,2]
[373509110,1753025455779,-480.0,0.00019178,2]
[373509111,1753025455788,-480.0,0.00019178,2]
[373509112,1753025455798,-1432.16,0.00019178,2]
[373509113,1753025455807,-480.0,0.00019178,2]
[373509114,1753025455816,-480.0,0.00019178,2]
[373509115,1753025455826,-462.60088091,0.00019178,2]
[373509116,1753025455835,-483.52524831,0.00019178,2]
[373509117,1753025455844,-480.0,0.00019178,2]
[373509118,1753025455854,-2410.56,0.00019178,2]
[373509119,1753025455863,-480.0,0.00019178,2]
[373509120,1753025455873,-480.0,0.00019178,2]
[373509121,1753025455882,-480.0,0.00019178,2]
[373509122,1753025455892,-480.0,0.00019178,2]
[373509123,1753025455902,-530.78,0.00019178,2]
[373509124,1753025455911,-480.0,0.00019178,2]
[373509125,1753025455921,-1221.17,0.00019178,2]
[373509126,1753025455931,-644.37,0.00019178,2]
[373509127,1753025455940,-480.0,0.00019178,2]
[373509128,1753025455950,-4485.25,0.00019178,2]
[373509129,1753025455960,-252.11768007,0.00019178,2]
[373509130,1753025456516,-257.14231993,0.00019178,2]
[373509131,1753025456526,-259.60289443,0.00019178,2]
[373509132,1753025456536,-480.0,0.00019178,2]
[373509133,1753025456545,-480.0,0.00019178,2]
[373509134,1753025456555,-9336.08042807,0.00019178,2]
[373509135,1753025456564,-9336.08042807,0.00019178,2]
[373509136,1753025456574,-9336.08042807,0.00019178,2]
[373509137,1753025456583,-9336.08042807,0.00019178,2]
[373509138,1753025456593,-9336.08042807,0.00019178,2]
[373509139,1753025456602,-9336.08042807,0.00019178,2]
[373509140,1753025456612,-9336.08042807,0.00019178,2]
[373509141,1753025456621,-9336.08042807,0.00019178,2]
[373509142,1753025456630,-9336.08042807,0.00019178,2]
[373509143,1753025456640,-480.0,0.00019178,2]
[373509144,1753025456649,-480.0,0.00019178,2]
[373509145,1753025456658,-266.11061455,0.00019178,2]
[373509146,1753025456667,-480.0,0.00019178,2]
[373509147,1753025456676,-311.29797295,0.00019178,2]
[373509148,1753025456687,-480.0,0.00019178,2]
[373509149,1753025456696,-480.0,0.00019178,2]
[373509150,1753025456706,-3231.63,0.00019178,2]
[373509151,1753025456715,-480.0,0.00019178,2]
[373509152,1753025456725,-480.0,0.00019178,2]
[373509153,1753025456734,-480.0,0.00019178,2]
[373509154,1753025456743,-480.0,0.00019178,2]
[373509155,1753025456752,-462.66693813,0.00019178,2]
[373509156,1753025456761,-480.0,0.00019178,2]
[373509157,1753025456771,-480.0,0.00019178,2]
[373509158,1753025456780,-482.60754764,0.00019178,2]
[373509159,1753025456789,-483.1912338,0.00019178,2]
[373509160,1753025456798,-2754.18,0.00019178,2]
[373509161,1753025456808,-480.0,0.00019178,2]
[373509162,1753025456817,-483.34316733,0.00019178,2]
[373509163,1753025456826,-792.63,0.00019178,2]
[373509164,1753025456836,-465.04187787,0.00019178,2]
[373509165,1753025456846,-480.0,0.00019178,2]
[373509166,1753025456857,-480.0,0.00019178,2]
[373509167,1753025456868,-789.05,0.00019178,2]
[373509168,1753025456877,-3370.96,0.00019178,2]
[373509169,1753025456888,-2285.39,0.00019178,2]
[373509170,1753025456897,-480.0,0.00019178,2]
[373509171,1753025456906,-482.30846369,0.00019178,2]
[373509172,1753025456916,-460.0,0.00019178,2]
[373509173,1753025456928,-2114.51,0.00019178,2]
[373509174,1753025456939,-2128.85,0.00019178,2]
[373509175,1753025456948,-480.0,0.00019178,2]
[373509176,1753025456958,-506.39,0.00019178,2]
[373509177,1753025456967,-480.0,0.00019178,2]
[373509178,1753025456976,-480.0,0.00019178,2]
[373509179,1753025456986,-461.88525671,0.00019178,2]
[373509180,1753025456996,-2416.39,0.00019178,2]
[373509181,1753025457008,-480.0,0.00019178,2]
[373509182,1753025457017,-480.0,0.00019178,2]
[373509183,1753025457027,-1105.51,0.00019178,2]
[373509184,1753025457036,-480.0,0.00019178,2]
[373509185,1753025457047,-482.8262737,0.00019178,2]
[373509186,1753025457057,-463.12065391,0.00019178,2]
[373509187,1753025457067,-6033.19,0.00019178,2]
[373509188,1753025457077,-480.90634308,0.00019178,2]
[373509189,1753025457087,-480.0,0.00019178,2]
[373509190,1753025457427,-480.0,0.00019178,2]
[373509191,1753025457438,-480.0,0.00019178,2]
[373509192,1753025457447,-480.0,0.00019178,2]
[373509193,1753025457459,-688.01,0.00019178,2]
[373509194,1753025457470,-688.01,0.00019178,2]
[373509195,1753025457480,-688.01,0.00019178,2]
[373509196,1753025457490,-482.10115279,0.00019178,2]
[373509197,1753025457500,-480.0,0.00019178,2]
[373509198,1753025457512,-1647.91,0.00019178,2]
[373509199,1753025457522,-480.0,0.00019178,2]
[373509200,1753025457532,-480.0,0.00019178,2]
[373509201,1753025457542,-2275.72,0.00019178,2]
[373509202,1753025457552,-677.9,0.00019178,2]
[373509203,1753025457563,-742.65,0.00019178,2]
[373509204,1753025457573,-480.0,0.00019178,2]
[373509205,1753025457583,-2854.45,0.00019178,2]
[373509206,1753025457592,-2551.41,0.00019178,2]
[373509207,1753025457603,-480.0,0.00019178,2]
[373509208,1753025457614,-711.97,0.00019178,2]
[373509209,1753025457625,-480.0,0.00019178,2]
[373509210,1753025457638,-480.0,0.00019178,2]
[373509211,1753025457648,-480.0,0.00019178,2]
[373509212,1753025457659,-397.23042758,0.00019178,2]
[373509213,1753025457669,-480.0,0.00019178,2]
[373509214,1753025457679,-5140.13,0.00019178,2]
[373509215,1753025457689,-480.0,0.00019178,2]
[373509216,1753025457699,-480.0,0.00019178,2]
[373509217,1753025457709,-480.0,0.00019178,2]
[373509218,1753025457719,-14515.95998135,0.00019178,2]
[373509219,1753025457746,-5731.41317928,0.00019178,2]
[373509220,1753025458173,-320.64050872,0.00017957,2]
[373509221,1753025458182,-10461.95683937,0.00019178,2]
[373509222,1753025458191,-480.0,0.00019178,2]
[373509223,1753025458200,-480.0,0.00019178,2]
[373509224,1753025458209,-4183.47,0.00019178,2]
[373509225,1753025458218,-480.0,0.00019178,2]
[373509226,1753025458228,-480.0,0.00019178,2]
[373509227,1753025458238,-158.49793153,0.00019178,2]
[373509228,1753025458248,-462.4291024,0.00019178,2]
[373509229,1753025458257,-6467.2,0.00019178,2]
[373509230,1753025458266,-2062.71,0.00019178,2]
[373509231,1753025458275,-480.0,0.00019178,2]
[373509232,1753025458284,-480.0,0.00019178,2]
[373509233,1753025458293,-4288.75,0.00019178,2]
[373509234,1753025458303,-652.56,0.00019178,2]
[373509235,1753025458312,-462.27309129,0.00019178,2]
[373509236,1753025458321,-480.0,0.00019178,2]
[373509237,1753025458330,-480.0,0.00019178,2]
[373509238,1753025458340,-480.0,0.00019178,2]
[373509239,1753025458349,-480.0,0.00019178,2]
[373509240,1753025458358,-1178.46,0.00019178,2]
[373509241,1753025458367,-1656.84,0.00019178,2]
[373509242,1753025458377,-2279.73,0.00019178,2]
[373509243,1753025458386,-487.92,0.00019178,2]
[373509244,1753025458395,-494.54,0.00019178,2]
[373509245,1753025458405,-480.0,0.00019178,2]
[373509246,1753025458415,-1091.42,0.00019178,2]
[373509247,1753025458424,-722.27,0.00019178,2]
[373509248,1753025458435,-5564.96,0.00019178,2]
[373509249,1753025458444,-480.0,0.00019178,2]
[373509250,1753025458453,-480.0,0.00019178,2]
[373509251,1753025458462,-480.0,0.00019178,2]
[373509252,1753025458471,-2723.27,0.00019178,2]
[373509253,1753025458480,-480.0,0.00019178,2]
[373509254,1753025458490,-480.0,0.00019178,2]
[373509255,1753025458499,-480.0,0.00019178,2]
[373509256,1753025458508,-590.75,0.00019178,2]
[373509257,1753025458517,-480.0,0.00019178,2]
[373509258,1753025458526,-480.0,0.00019178,2]
[373509259,1753025458536,-480.0,0.00019178,2]
[373509260,1753025458545,-480.0,0.00019178,2]
[373509261,1753025458554,-481.52618935,0.00019178,2]
[373509262,1753025458564,-2242.83,0.00019178,2]
[373509263,1753025458573,-480.0,0.00019178,2]
[373509264,1753025458583,-480.0,0.00019178,2]
[373509265,1753025458592,-480.0,0.00019178,2]
[373509266,1753025458602,-464.27608058,0.00019178,2]
[373509267,1753025458611,-480.0,0.00019178,2]
[373509268,1753025458621,-480.0,0.00019178,2]
[373509269,1753025458630,-480.0,0.00019178,2]
[373509270,1753025458639,-480.0,0.00019178,2]
[373509271,1753025458649,-483.08248165,0.00019178,2]
[373509272,1753025458658,-4448.94,0.00019178,2]
[373509273,1753025458668,-1917.78,0.00019178,2]
[373509274,1753025458677,-660.57,0.00019178,2]
[373509275,1753025458687,-1492.96,0.00019178,2]
[373509276,1753025458697,-480.0,0.00019178,2]
[373509277,1753025458706,-8122.9,0.00019178,2]
[373509278,1753025458716,-480.0,0.00019178,2]
[373509279,1753025458725,-480.0,0.00019178,2]
[373509280,1753025458735,-423.83972836,0.00019178,2]
[373509281,1753025458744,-480.0,0.00019178,2]
[373509282,1753025458754,-480.71002206,0.00019178,2]
[373509283,1753025458763,-480.0,0.00019178,2]
[373509284,1753025458772,-480.0,0.00019178,2]
[373509285,1753025458781,-480.0,0.00019178,2]
[373509286,1753025458790,-1039.36,0.00019178,2]
[373509287,1753025458800,-480.0,0.00019178,2]
[373509288,1753025458809,-480.0,0.00019178,2]
[373509289,1753025458819,-480.0,0.00019178,2]
[373509290,1753025458829,-705.72,0.00019178,2]
[373509291,1753025458838,-480.0,0.00019178,2]
[373509292,1753025458848,-461.22554164,0.00019178,2]
[373509293,1753025458857,-386.35047753,0.00019178,2]
[373509294,1753025458867,-1313.68,0.00019178,2]
[373509295,1753025458877,-790.81,0.00019178,2]
[373509296,1753025458887,-480.0,0.00019178,2]
[373509297,1753025458896,-480.0,0.00019178,2]
[373509298,1753025458906,-1486.95,0.00019178,2]
[373509299,1753025458915,-1695.61,0.00019178,2]
[373509300,1753025458925,-480.0,0.00019178,2]
[373509301,1753025458934,-480.0,0.00019178,2]
[373509302,1753025458943,-481.83721068,0.00019178,2]
[373509303,1753025458953,-480.0,0.00019178,2]
[373509304,1753025458962,-480.0,0.00019178,2]
[373509305,1753025458972,-480.0,0.00019178,2]
[373509306,1753025458981,-480.0,0.00019178,2]
[373509307,1753025458990,-480.0,0.00019178,2]
[373509308,1753025459003,-480.0,0.00019178,2]
[373509309,1753025459012,-1135.43,0.00019178,2]
[373509310,1753025459022,-480.0,0.00019178,2]
[373509311,1753025459032,-480.0,0.00019178,2]
[373509312,1753025459043,-658.96,0.00019178,2]
[373509313,1753025459052,-488.50979189,0.00019178,2]
[373509314,1753025459061,-480.0,0.00019178,2]
[373509315,1753025459071,-480.0,0.00019178,2]
[373509316,1753025459080,-480.0,0.00019178,2]
[373509317,1753025459090,-926.78,0.00019178,2]
[373509318,1753025459099,-6636.86,0.00019178,2]
[373509319,1753025459109,-480.0,0.00019178,2]
[373509320,1753025459118,-483.95434753,0.00019178,2]
[373509321,1753025459127,-2808.97,0.00019178,2]
[373509322,1753025459137,-461.38714287,0.00019178,2]
[373509323,1753025459146,-480.0,0.00019178,2]
[373509324,1753025459156,-480.0,0.00019178,2]
[373509325,1753025459165,-480.0,0.00019178,2]
[373509326,1753025459174,-480.0,0.00019178,2]
[373509327,1753025459184,-975.08,0.00019178,2]
[373509328,1753025459194,-2261.21,0.00019178,2]
[373509329,1753025459203,-480.0,0.00019178,2]
[373509330,1753025459212,-1074.06,0.00019178,2]
[373509331,1753025459222,-482.40167382,0.00019178,2]
[373509332,1753025459232,-480.0,0.00019178,2]
[373509333,1753025459242,-510.35313288,0.00019178,2]
[373509334,1753025459251,-483.97340567,0.00019178,2]
[373509335,1753025459261,-480.0,0.00019178,2]
[373509336,1753025459270,-490.5,0.00019178,2]
[373509337,1753025459279,-464.45752189,0.00019178,2]
[373509338,1753025459289,-920.25,0.00019178,2]
[373509339,1753025459298,-732.46,0.00019178,2]
[373509340,1753025459308,-522.77521357,0.00019178,2]
[373509341,1753025459317,-3513.94,0.00019178,2]
[373509342,1753025459327,-480.0,0.00019178,2]
[373509343,1753025459337,-480.0,0.00019178,2]
[373509344,1753025459347,-364.98805349,0.00019178,2]
[373509345,1753025459357,-9744.59,0.00019178,2]
[373509346,1753025459366,-666.24,0.00019178,2]
[373509347,1753025459375,-1372.41,0.00019178,2]
[373509348,1753025459385,-653.37,0.00019178,2]
[373509349,1753025459394,-693.81,0.00019178,2]
[373509350,1753025459403,-480.0,0.00019178,2]
[373509351,1753025459413,-507.64448519,0.00019178,2]
[373509352,1753025459422,-480.0,0.00019178,2]
[373509353,1753025459431,-583.65,0.00019178,2]
[373509354,1753025459442,-480.0,0.00019178,2]
[373509355,1753025459452,-480.0,0.00019178,2]
[373509356,1753025459461,-481.94755091,0.00019178,2]
[373509357,1753025459470,-1152.1,0.00019178,2]
[373509358,1753025459480,-1430.34,0.00019178,2]
[373509359,1753025459489,-1736.91,0.00019178,2]
[373509360,1753025459498,-480.0,0.00019178,2]
[373509361,1753025459507,-480.0,0.00019178,2]
[373509362,1753025459516,-2628.97,0.00019178,2]
[373509363,1753025459526,-499.24,0.00019178,2]
[373509364,1753025459535,-616.40632566,0.00019178,2]
[373509365,1753025459544,-480.0,0.00019178,2]
[373509366,1753025459553,-487.5009834,0.00019178,2]
[373509367,1753025459562,-480.0,0.00019178,2]
[373509368,1753025459572,-485.47490257,0.00019178,2]
[373509369,1753025459581,-480.0,0.00019178,2]
[373509370,1753025459590,-465.56832714,0.00019178,2]
[373509371,1753025459600,-480.0,0.00019178,2]
[373509372,1753025459610,-315.38093387,0.00019178,2]
[373509373,1753025459618,-480.0,0.00019178,2]
[373509374,1753025459628,-874.74,0.00019178,2]
[373509375,1753025459637,-1647.28,0.00019178,2]
[373509376,1753025459646,-461.65485461,0.00019178,2]
[373509377,1753025459655,-480.0,0.00019178,2]
[373509378,1753025459739,-480.0,0.00019178,2]
[373509379,1753025459749,-994.88,0.00019178,2]
[373509380,1753025459758,-894.45,0.00019178,2]
[373509381,1753025459767,-480.0,0.00019178,2]
[373509382,1753025459776,-480.0,0.00019178,2]
[373509383,1753025459785,-338.92877273,0.00019178,2]
[373509384,1753025459805,-161.07122727,0.00019178,2]
[373509385,1753025459815,-480.0,0.00019178,2]
[373509386,1753025459824,-480.0,0.00019178,2]
[373509387,1753025459833,-1573.82,0.00019178,2]
[373509388,1753025459842,-480.0,0.00019178,2]
[373509389,1753025459851,-480.0,0.00019178,2]
[373509390,1753025459860,-2810.95,0.00019178,2]
[373509391,1753025459870,-480.0,0.00019178,2]
[373509392,1753025459879,-480.0,0.00019178,2]
[373509393,1753025459889,-463.69082099,0.00019178,2]
[373509394,1753025459898,-500.0,0.00019178,2]
[373509395,1753025459907,-480.0,0.00019178,2]
[373509396,1753025459916,-500.0,0.00019178,2]
[373509397,1753025459925,-462.11805255,0.00019178,2]
[373509398,1753025459935,-500.0,0.00019178,2]
[373509399,1753025459945,-480.0,0.00019178,2]
[373509400,1753025459954,-500.0,0.00019178,2]
[373509401,1753025459963,-500.0,0.00019178,2]
[373509402,1753025459973,-480.0,0.00019178,2]
[373509403,1753025459983,-500.0,0.00019178,2]
[373509404,1753025459995,-480.0,0.00019178,2]
[373509405,1753025460007,-500.0,0.00019178,2]
[373509406,1753025460017,-480.0,0.00019178,2]
[373509407,1753025460026,-1583.85,0.00019178,2]
[373509408,1753025460036,-274.54252145,0.00019178,2]
[373509409,1753025460053,-301.22345904,0.00019178,2]
[373509410,1753025460063,-480.0,0.00019178,2]
[373509411,1753025460073,-480.0,0.00019178,2]
[373509412,1753025460083,-480.0,0.00019178,2]
[373509413,1753025460092,-1399.77654096,0.00019178,2]
[373509414,1753025460829,1000.0,0.00030136,120]
[373509415,1753025462953,1000.0,0.00030136,120]
[373509416,1753025481179,1000.0,0.00030136,120]
[373509417,1753025497227,1000.0,0.00030136,120]
[373509418,1753025520298,238.91,0.00025201,120]
[373509419,1753025520515,238.91,0.00027492,120]
[373509420,1753025521120,286.0,0.00030136,120]
[373509421,1753025530729,250.0,0.00015,2]
[373509422,1753025555561,1512.72737525,0.00030136,120]
[373509423,1753025582524,814.04136082,0.0001928,30]
[373509425,1753025650210,178.74,0.00013699,2]
[373509427,1753025674945,800.0,0.00030137,120]
[373509428,1753025681201,800.0,0.00030137,120]
[373509429,1753025688101,800.0,0.00030137,120]
[373509430,1753025694561,800.0,0.00030137,120]
[373509431,1753025703255,800.0,0.00030137,120]
[373509512,1753025754761,555.0,0.00030137,120]
[373509832,1753026034397,511.2864644,0.00030136,120]
[373509833,1753026179703,513.0,0.00015922,2]
[373509854,1753026388989,500.0,0.00015922,2]
[373509856,1753026437177,-150.0,0.00016745,2]
[373509857,1753026437202,-150.0,0.0001697,2]
[373509858,1753026437227,-150.0,0.00017215,2]
[373509859,1753026437251,-150.0,0.00017228,2]
[373509860,1753026437274,-150.0,0.00017433,2]
[373509861,1753026437299,-150.0,0.00017433,2]
[373509862,1753026437321,-150.0,0.00017433,2]